Workbook

Sheet Eingabe
T1: =TODAY() -> 2024-02-09 | AM1: Nombre de pages
T2: =CONCATENATE("Page 1/",$AM$2) -> Page 1/2 | AM2: 2
Q3: Projet de construction : | X3: travaux de rénovation Dupont
Q4: Position : | X4: 20.1 Poutre de mur-rideau
AJ5: © 2024
A6: Landstraße 25, D - 79809 Weilheim - Bannholz
C8: Calcul de entretoise U*psi selon DIN EN 1995 [mars 2020]
C10: Saisie de la géométrie | AL10: =IF(Q11="U*psi F","F","Sa") -> Sa | AM10: U*psi F | AN10: U*psi S
C11: Type de support : | Q11: U*psi S | W11: =IF(Q11="U*psi S","U*psi S possible uniquement avec hauteur de construction 240.","") -> U*psi S possible uniquement avec hauteur de construction 240. | AM11: 160 | AN11: 240
C12: Hauteur de construction : | Q12: 240 | AM12: 200
C13: Longueur du composant | O13: l E | P13: = | Q13: 2940 | AM13: 240
AM14: 300
C24: Conditions-cadres
C25: Flambement sur l’axe faible évité | Q25: oui
C26: Le flambement est évité si l’entraxe des vis est ≤ 800 mm
AM27: ='NW nachgiebig verb. Biegeträger'!Q26 -> 398
C28: Fixation exécuté | Q28: dans chaque travée
C29: Fixation exécuté | Q29: entre les échelons
C30: Fixation avec entraxe | N30: e | O30: v | P30: = | Q30: =IF(Q25="non",2940,IF(Q28="dans chaque travée",400,800)) -> 400
C33: Entraxe des entretoises | N33: e | O33: w | P33: = | Q33: 625
T59: =TODAY() -> 2024-02-09
T60: =CONCATENATE("Page 2/",$AM$2) -> Page 2/2
Q61: Projet de construction : | X61: =IF($X$3="","",$X$3) -> travaux de rénovation Dupont
Q62: Position : | X62: =IF($X$4="","",$X$4) -> 20.1 Poutre de mur-rideau
A64: Landstraße 25, D - 79809 Weilheim - Bannholz
C66: =C8 -> Calcul de entretoise U*psi selon DIN EN 1995 [mars 2020]
AS67: Pression dynamique Allemagne
C68: Données relatives à l’action | AL68: kmod | AM68: Classe de service | AS68: Zone | AU68: 10 | AV68: 18 | AW68: 25
C69: Classe de service (en général CS 2) | Q69: 1 | AL69: KD | AM69: 1 | AN69: 2 | AO69: 3 | AS69: 1 | AT69: Intérieur du pays | AU69: 0.5 | AV69: 0.65 | AW69: 0.75
C70: Coefficient de durée d'application de la charge | Q70: =IF(P71="Vent","courte/très courte",IF(P71="Poids propre","permanente",IF(P71="Neige<1000mamsl","courte","moyenne"))) -> courte | AL70: permanente | AM70: 0.6 | AN70: 0.6 | AO70: 0.5 | AS70: 2 | AT70: Intérieur du pays | AU70: 0.65 | AV70: 0.8 | AW70: 9
D71: Charge déterminante (en général : vent) | P71: Neige<1000mamsl | AL71: longue | AM71: 0.7 | AN71: 0.7 | AO71: 0.55 | AS71: 2 | AT71: Côte et îles de la mer Baltique | AU71: 0.85 | AV71: 1 | AW71: 1.1
C72: Facteur modificatif (kmod) | Q72: =IF(Q69=1,VLOOKUP(Q70,AL68:AO75,2,FALSE),IF(Q69=2,VLOOKUP(Q70,AL68:AO75,3,FALSE),IF(Q69=3,VLOOKUP(Q70,AL68:AO75,4,FALSE),""))) -> 0.9 | AL72: moyenne | AM72: 0.8 | AN72: 0.8 | AO72: 0.65 | AS72: 3 | AT72: Intérieur du pays | AU72: 0.8 | AV72: 0.95 | AW72: 1.1
C73: Coefficient partiel de sécurité (gm) | Q73: 1.3 | AL73: courte | AM73: 0.9 | AN73: 0.9 | AO73: 0.7 | AS73: 3 | AT73: Côte et îles de la mer Baltique | AU73: 1.05 | AV73: 1.2 | AW73: 1.3
C74: Valeurs de saisie | O74: caractéristiques | AL74: courte/très courte | AM74: 1 | AN74: 1 | AO74: 0.8 | AS74: 4 | AT74: Intérieur du pays | AU74: 0.95 | AV74: 1.15 | AW74: 1.3
C75: =IF(O74="Valeurs théoriques","Type de façade"," ") ->  | Q75: Façade crépie | AL75: très courte | AM75: 1.1 | AN75: 1.1 | AO75: 0.9 | AS75: 4 | AT75: Côte et îles de la mer Baltique | AU75: 1.25 | AV75: 1.4 | AW75: 1.55
AS76: 4 | AT76: Îles de la Mer du Nord | AU76: 1.4 | AV76: - | AW76: -
AL77: Façade en bois
AL78: Façade crépie
C79: Effort normal sur membrure comprimée (par entretoise) | R79: G | S79: k | T79: = | U79: 1e-13 | AA79: N | AB79: d | AC79: = | AD79: 0.1 | AT79: Hauteur de l’ouvrage | AU79: =IF(AC92<11,10,IF(AC92<19,18,25)) -> 10
C80: (pertinente pour mur à ossature bois) | R80: P | S80: k | T80: = | U80: 0 | AS80: 1 | AT80: Intérieur du pays | AU80: =_xlfn.XLOOKUP(AU79,AU68:AW68,AU69:AW76) -> 0.5
R81: S | S81: k | T81: = | U81: 0 | AA81: N | AB81: d | AC81: = | AD81: =IF(O74="Valeurs_de_dimensionement",AD79,MAX(1.35*U79+1.5*U80+1.5*0.7*U81,1.35*U79+1.5*U81+1.5*0.7*U80)) -> 1.35e-13 | AS81: 2 | AT81: Intérieur du pays | AU81: 0.65
U82: avec ψ0 = 0,70 | AS82: 2 | AT82: Côte et îles de la mer Baltique | AU82: 0.85
C83: Charge de façade avec isolation | R83: q | S83: G,v,k | T83: = | U83: 3.45 | AA83: q | AB83: v,d | AC83: = | AD83: =IF(Q75="Façade en bois",0.6*1.5,IF(Q75="Façade crépie",0.7*1.5," ")) -> 1.05 | AS83: 3 | AT83: Intérieur du pays | AU83: 0.8
C84: Charge verticale concentrée supplémentaire sur la membrure de façade | R84: F | S84: G,v,k | T84: = | U84: 0 | AA84: F | AB84: v,d | AC84: = | AD84: 0 | AS84: 3 | AT84: Côte et îles de la mer Baltique | AU84: 1.05
R85: F | S85: P,v,k | T85: = | U85: 0 | AS85: 4 | AT85: Intérieur du pays | AU85: 0.95
R86: F | S86: S,v,k | T86: = | U86: 0 | Z86: F | AA86: v,d,tot | AC86: = | AD86: =IF(O74="Valeurs_de_dimensionement",AD84+AD83*Q33/1000*Q13/1000,MAX(1.35*(U84+U83*Q33/1000*Q13/1000)+1.5*U85+1.5*0.7*U86,1.35*(U84+U83*Q33/1000*Q13/1000)+1.5*U86+1.5*0.7*U85)) -> 8.55815625 | AS86: 4 | AT86: Côte et îles de la mer Baltique | AU86: 1.25
U87: avec ψ0 = 0,70 | AS87: 4 | AT87: Îles de la Mer du Nord | AU87: 1.4
C90: Action du vent : | I90: Pays | P90: Allemagne
C91: Valeur de référence issue par ex. de www.dlubal.com | I91: =IF(P90="Suisse","Pression dynamique qp0", " ") ->  | P91: 0.5 | U91: =IF(P90="Suisse"," ","Zone de vent") -> Zone de vent | AC91: 2 | AS91: =_xlfn._xlws.FILTER(AS80:AU87,AS80:AS87=AC91) -> 2 | AT91: Intérieur du pays | AU91: 0.65
I92: Hauteur de l’ouvrage h | P92: 20 | U92: =IF(P90="Suisse"," ","Hauteur de l’ouvrage h") -> Hauteur de l’ouvrage h | AC92: 10 | AS92: 2 | AT92: Côte et îles de la mer Baltique | AU92: 0.85
I93: Catégorie de rugosité | O93: Vastes zones urbaines | U93: =IF(P90="Suisse"," ","Exposition") -> Exposition | AA93: Côte et îles de la mer Baltique
I94: Hauteur de gradient zg | P94: =IF(O93="Lacs",300,IF(O93="Grande plaine",380,IF(O93="Localités, milieu rural",450,526))) -> 526 | U94: Pression dynamique qp | AC94: =IF(P90="Suisse"," ",_xlfn.XLOOKUP(AA93,AT91:AT93,AU91:AU93)) -> 0.85
C95: Coefficients de pression pour le pire cas | I95: Rugosité du terrain αr | P95: =IF(O93="Lacs",0.16,IF(O93="Grande plaine",0.19,IF(O93="Localités, milieu rural",0.23,0.3))) -> 0.3 | U95: Coefficient de pression cpe10 | AC95: =IF(P90="Suisse"," ",0.8) -> 0.8
I96: Profil de répartition du vent ch | Q96: =1.6*((P92/P94)^P95+0.375)^2 -> 0.8999627153
C97: (DN 30°, h:b:d = 2,5:2:1) | I97: Pression dynamique qp | P97: =Q96*P91 -> 0.4499813576
I98: Coefficient de pression cpe,A | Q98: 0.8
I99: Coefficient de pression cpe,B | Q99: -1.1
C101: Action du vent | N101: qh,k | P101: = | Q101: =P97*MAX(ABS(Q98),ABS(Q99)) -> 0.4949794934 | Z101: qh,k | AB101: =IF($P$90="Suisse"," ","=") -> = | AC101: =IF(P90="Suisse"," ",AC94*MAX(ABS(AC95),ABS(AC96))) -> 0.68
N102: qh,d | P102: = | Q102: =1.5*Q101 -> 0.7424692401 | Z102: qh,d | AB102: =IF($P$90="Suisse"," ","=") -> = | AC102: =IF(P90="Suisse"," ",1.5*AC101) -> 1.02
C103: Action du vent par entretoise | N103: q'h,d | P103: = | Q103: =Q102*Q33/1000 -> 0.4640432751 | Z103: q' h,d | AB103: =IF($P$90="Suisse"," ","=") -> = | AC103: =IF(P90="Suisse"," ",AC102*Q33/1000) -> 0.6375
C105: Saisie des agrafes pour U*psi S
C106: Agrafes par traverse | U106: 2
C108: Dimensions des agrafes : | N108: Longueur de clou | T108: l | U108: 55
N109: Diamètre de clou | T109: d | U109: 1.8
N110: Entraxe des clous | T110: c | U110: 11
C112: Angle entre la direction de l'effort et le sens des fibres | S112: a | U112: 0°- 90°
C113: Angle entre dos d’agrafe et sens des fibres | S113: b | U113: >30°
C120: =IF(Q30<3*AM27,"Les vérifications se basent sur la théorie de l'élasticité linéaire !","Les vérifications sont effectuées selon la théorie des poutres sollicitées en flexion reliées de manière flexible!") -> Les vérifications se basent sur la théorie de l'élasticité linéaire !
C121: Sélectionner la feuille de travail correspondante pour éditer les vérifications détaillées
C123: Membrure comprimée | S123: h | T123: = | U123: =IF(Q30<3*AM27,'NW ohne nachgiebigen Verbund'!Y211,'NW nachgiebig verb. Biegeträger'!AA204) -> 0.6880700231 | Z123: =IF(U123>1,">","<") -> < | AA123: 1
C125: Membrure de façade | S125: h | T125: = | U125: =IF(Q30<3*AM27,'NW ohne nachgiebigen Verbund'!Y230,'NW nachgiebig verb. Biegeträger'!AA227) -> 1.041834109 | Z125: =IF(U125>1,">","<") -> > | AA125: 1
C127: Surface de contact | S127: h | T127: = | U127: =IF(Q11="U*psi S",'NW nachgiebig verb. Biegeträger'!AE451,IF(Q30<3*AM27,'NW ohne nachgiebigen Verbund'!AH311,'NW nachgiebig verb. Biegeträger'!AG347)) -> 6.431783927 | Z127: =IF(U127>1,">","<") -> > | AA127: 1
C129: Flèche due au vent | S129: u | T129: = | U129: ='NW nachgiebig verb. Biegeträger'!AC371 -> 0.003897870571 | Z129: = | AA129: l/ | AB129: =Q30/U129 -> 102620.1339
Z130: ='NW nachgiebig verb. Biegeträger'!Y369 -> L’hypothèse se rapporte à un système de poutre à une seule travée entre les fixations !
C131: =IF(MAX(U123,U125,U127,U129)>1,"Entretoise insuffisant !","Vérification OK.") -> Entretoise insuffisant !
C134: Réaction d'appui verticale par fixation | S134: Réaction d'appui horizontale par fixation | AL134: Hypothèse avec réaction d'appui horizontale sur parement : Poutre à 2 travées avec réaction d'appui de la zone centrale d’appui (1,25 * q * l)
C136: V | D136: tot,d | F136: = | G136: =(AD81+AD86)/AP136 -> 1.22259375 | S136: H | T136: tot,d | V136: = | W136: =IF(Q30<3*'NW nachgiebig verb. Biegeträger'!Q26,1.25*IF(P90="Suisse",Q103,Eingabe!AC103)*'NW ohne nachgiebigen Verbund'!Q36/1000,1.25*IF(P90="Suisse",Q103,AC103)*Q30/1000) -> 0.31715625 | AL136: Nombre d’appuis (arrondi) : | AO136: nappui = | AP136: =MAX(2,IF(Q30<'NW nachgiebig verb. Biegeträger'!Q26*3,ROUNDDOWN(Q13/'NW ohne nachgiebigen Verbund'!Q36,0),ROUNDDOWN(Q13/Q30,0))) -> 7
C138: V | D138: G,k | F138: = | G138: =(U79+U84+U83*Q13*Q33/1000000)/AP136 -> 0.905625 | S138: H | T138: w,k | V138: = | W138: =IF(Q30<3*'NW nachgiebig verb. Biegeträger'!Q26,1.25*IF(P90="Suisse",Eingabe!Q101,AC101)*Eingabe!Q33*'NW ohne nachgiebigen Verbund'!Q36/1000000,1.25*IF(P90="Suisse",Q101,AC101)*Q33*Q30/1000000) -> 0.2114375
C139: V | D139: P,k | F139: = | G139: =(U80+U85)/AP136 -> 0
C140: V | D140: S,k | F140: = | G140: =(U81+U86)/AP136 -> 0

Sheet NW nachgiebig verb. Biegeträger (hidden)
T1: =TODAY() -> 2024-02-09 | AM1: Nombre de pages
T2: =CONCATENATE("Page 1/",$AM$2) -> Page 1/7 | AM2: 7
R3: Projet de construction : | X3: =IF(Eingabe!$X$3="","",Eingabe!$X$3) -> travaux de rénovation Dupont
R4: Position : | X4: =IF(Eingabe!$X$4="","",Eingabe!$X$4) -> 20.1 Poutre de mur-rideau
AJ5: =Eingabe!$AJ$5 -> © 2024
A6: Landstraße 25, D - 79809 Weilheim - Bannholz
C8: =Eingabe!C8 -> Calcul de entretoise U*psi selon DIN EN 1995 [mars 2020]
C10: Type : | J10: =Eingabe!Q11 -> U*psi S
C11: Hauteur de construction : | J11: =Eingabe!Q12 -> 240
C13: Géométrie
C14: Membrure à fixer | N14: t1 | P14: = | Q14: =IF(J10="U*psi F",VLOOKUP(J11,Geometrie!B4:I12,2,FALSE),IF(J10="U*psi S",VLOOKUP(J11,Geometrie!B12:I12,2,FALSE),"")) -> 40
C15: Membrure côté façade | K15: t2 ≤ t1! | N15: t2 | P15: = | Q15: =IF(J10="U*psi F",VLOOKUP(J11,Geometrie!B4:I12,3,FALSE),IF(J10="U*psi S",VLOOKUP(J11,Geometrie!B12:I12,3,FALSE),"")) -> 40
C17: Somme de la largeur des deux membrures | N17: bG | P17: = | Q17: =IF(J10="U*psi F",VLOOKUP(J11,Geometrie!B4:I10,4,FALSE),IF(J10="U*psi S",VLOOKUP(J11,Geometrie!B12:I12,4,FALSE),""))-Q24 -> 39
C18: Classe de résistance | Q18: C24
C19: Module d'élasticité | N19: E1 | P19: = | Q19: 11000
N20: E2 | P20: = | Q20: =Q19 -> 11000
C22: Échelons
C23: Hauteur | N23: hs | P23: = | Q23: =IF(J10="U*psi F",VLOOKUP(J11,Geometrie!B4:I12,5,FALSE),IF(J10="U*psi S",VLOOKUP(J11,Geometrie!B12:I12,5,FALSE),"")) -> 62
C24: Largeur | N24: s | P24: = | Q24: =IF(J10="U*psi F",VLOOKUP(J11,Geometrie!B4:I10,6,FALSE),IF(J10="U*psi S",VLOOKUP(J11,Geometrie!B12:I12,6,FALSE),"")) -> 20
C25: Longueur | N25: h | P25: = | Q25: =IF(J10="U*psi F",VLOOKUP(J11,Geometrie!B4:I10,7,FALSE),IF(J10="U*psi S",VLOOKUP(J11,Geometrie!B12:I12,7,FALSE),"")) -> 240
C26: Entraxe des échelons | N26: e | P26: = | Q26: =IF(J10="U*psi F",VLOOKUP(J11,Geometrie!B4:I10,8,FALSE),IF(J10="U*psi S",VLOOKUP(J11,Geometrie!B12:I12,8,FALSE),"")) -> 398
C27: Classe de résistance | Q27: C24
C28: Module d'élasticité | N28: EBH | P28: = | Q28: 11000
C29: Module de cisaillement | N29: G | P29: = | Q29: 690
C31: Longueur de l’élément | N31: lE | P31: = | Q31: =Eingabe!Q13 -> 2940
C32: Flambement dans le sens y évité | Q32: =Eingabe!Q25 -> oui
C33: avec entraxe | N33: ev | P33: = | Q33: =Eingabe!Q30 -> 400 | AK33: Formule transformée en Sk pour le flambage
C34: Longueur de flambement autour de l’axe z | N34: sk,z | P34: = | Q34: =IF(Q32="non",IF(Q33<Q31/(2.914/(Q43/(Q43+Q49)+1.385)-0.222)^0.5,Q33,Q33/(2.914/(Q43/(Q43+Q49)+1.385)-0.222)^0.5),0) -> 0
C36: Longueur de flambement autour de l’axe y | N36: sk,y | P36: = | Q36: =IF(Q33<(Q31/(2.914/(Q43/(Q43+Q49)+1.385)-0.222)^0.5),Q33,Q33/(2.914/(Q43/(Q43+Q49)+1.385)-0.222)^0.5) -> 400
C39: Facteur modificatif | N39: kmod | P39: = | Q39: =Eingabe!Q72 -> 0.9
C40: Coefficient partiel de sécurité | N40: gM | P40: = | Q40: =Eingabe!Q73 -> 1.3
C42: Actions
C43: Effort normal dans la membrure la plus épaisse | N43: Nd | P43: = | Q43: =Eingabe!AD81 -> 1.35e-13
C45: Charge transversale par entretoise | N45: q'h,d | P45: = | Q45: =IF(Eingabe!P90="Suisse",Eingabe!Q103,Eingabe!AC103) -> 0.6375
N46: Md | P46: = | Q46: =Q45*(Q31/1000)^2/8 -> 0.688786875
N47: Qd | P47: = | Q47: =Q45*Q31/2/1000 -> 0.937125
C49: Charge verticale de façade totale | N49: Fv,d,tot | P49: = | Q49: =Eingabe!AD86 -> 8.55815625
T60: =TODAY() -> 2024-02-09
T61: =CONCATENATE("Page 2/",$AM$2) -> Page 2/7
R62: Projet de construction : | X62: =IF(Eingabe!$X$3="","",Eingabe!$X$3) -> travaux de rénovation Dupont
R63: Position : | X63: =IF(Eingabe!$X$4="","",Eingabe!$X$4) -> 20.1 Poutre de mur-rideau
AJ64: =Eingabe!$AJ$5 -> © 2024
A65: Landstraße 25, D - 79809 Weilheim - Bannholz
C67: =C8 -> Calcul de entretoise U*psi selon DIN EN 1995 [mars 2020]
C69: Détermination des efforts internes via méthode g | Q69: EN 1995-1-1 Annexe B
C71: Entraxe des membrures (centre de gravité) | L71: a | N71: = | P71: h | Q71: - | R71: t1 | S71: - | T71: t2 | V71: = | W71: =Gamma!C11 -> 200
R72: 2 | T72: 2
C73: Entraxe des centres de gravité (sans g) | L73: a1 | N73: = | P73: h | Q73: - | R73: t1 | S73: - | T73: bG · t1 · ( h - t1 / 2 ) + bG · t2 · t2 / 2 | AE73: = | AF73: =Gamma!C12 -> 100
R74: 2 | T74: bG · t1 + bG · t2
C75: Entraxe des centres de gravité (sans g) | L75: a2 | N75: = | P75: a | Q75: - | R75: a1 | T75: = | U75: =Gamma!C13 -> 100
C77: Surface de la section transversale de la membrure comprimée | T77: A1 | V77: = | X77: t1 · bG | AA77: = | AB77: =Gamma!E16 -> 1560
C78: Surface de la section transversale de la membrure de façade | T78: A2 | V78: = | X78: t2 · bG | AA78: = | AB78: =Gamma!E18 -> 1560
C80: Rigidité du joint flexible
T81: Membrure comprimée | AD81: Membrure de façade
C82: 1. Déformation de flexion des membrures
C83: 1 / C1,i | F83: = | H83: ai2 · e | T83: 1 / C1,1 | V83: = | W83: =Gamma!B$3 -> 0.0001884469697 | AC83: 1 / C1,2 | AE83: = | AF83: =Gamma!B$7 -> 0.0001884469697
H84: 12 · Ei / gM · (bG · ti3 / 12 )
C86: 2. Déformation de flexion des échelons
C87: 1 / C2,i | F87: = | H87: a3 / 24 - ( a / 2 - ai )3 / 3 | T87: 1 / C2,1 | V87: = | W87: =Gamma!C$3 -> 9.917577304e-05 | AC87: 1 / C2,2 | AE87: = | AF87: =Gamma!C$7 -> 9.917577304e-05
H88: Ei / gM · (s · hs3 / 12 )
C90: 3. Déformation de cisaillement des échelons
C91: 1 / C3,i | F91: = | H91: ai | T91: 1 / C3,1 | V91: = | W91: =Gamma!D$3 -> 0.0001823281907 | AC91: 1 / C3,2 | AE91: = | AF91: =Gamma!D$7 -> 0.0001823281907
H92: Gi / gM · ( 5 / 6 · s · hs )
C94: 4. Déformation de cisaillement roulant dans les surfaces de contact entre les échelons et les membrures
C95: 1 / C4,i | F95: = | H95: s | T95: 1 / C4,1 | V95: = | W95: =Gamma!E$3 -> 5.241935484e-05 | AC95: 1 / C4,2 | AE95: = | AF95: =Gamma!E$7 -> 5.241935484e-05
H96: 4 · GR,i / gM · ( hs · ti )
C98: 5. Rotation de torsion dans les surfaces de contact
C99: 1 / C5,i | F99: = | H99: ai2 | T99: 1 / C5,1 | V99: = | W99: =Gamma!F$3 -> 0.001925766159 | AC99: 1 / C5,2 | AE99: = | AF99: =Gamma!F$7 -> 0.001925766159
H100: 2 · IP,i · K / gM
C102: Module de cisaillement total
C103: Ci | E103: = | G103: 1 | U103: C1 | V103: = | W103: =Gamma!B4 -> 408.4739644 | AD103: C2 | AE103: = | AF103: =Gamma!B8 -> 408.4739644
G104: 1 / C1,i + 1 / C2,i + 1 / C3,i + 1 / C4,i + 1 / C5,i
C106: Rigidités torsionnelles pour déterminer la répartition des moments sur les membrures
C108: cφ,i | E108: = | G108: ai2 | T108: cφ,1 | V108: = | W108: =Gamma!J4 -> 4729892.113 | AC108: cφ,2 | AE108: = | AF108: =Gamma!J8 -> 4729892.113
G109: 1 / C1,i + 1 / C5,i
C111: gi | E111: = | G111: 1 | H111: + | I111: p2 · Ei / gM · ti · bG · e | P111: -1 | U111: g1 | V111: = | W111: =1/(1+PI()^2*Geometrie!B26*Q14*Q17*Q26/Q31^2/Gamma!B4) -> 0.06375191503 | AD111: g2 | AE111: = | AF111: =1/(1+PI()^2*Geometrie!C26*Q15*Q17*Q26/Q31^2/Gamma!B8) -> 0.06375191503
I112: lE2 · Ci
T119: =TODAY() -> 2024-02-09
T120: =CONCATENATE("Page 3/",$AM$2) -> Page 3/7
R121: Projet de construction : | X121: =IF(Eingabe!$X$3="","",Eingabe!$X$3) -> travaux de rénovation Dupont
R122: Position : | X122: =IF(Eingabe!$X$4="","",Eingabe!$X$4) -> 20.1 Poutre de mur-rideau
AJ123: =Eingabe!$AJ$5 -> © 2024
A124: Landstraße 25, D - 79809 Weilheim - Bannholz
C126: =C67 -> Calcul de entretoise U*psi selon DIN EN 1995 [mars 2020]
C128: Caractéristiques de la section
C130: Moment effectif d'inertie de surface du 2e degré | Q130: Iy,eff | S130: = | T130: =Gamma!B20 -> 2405059.749 | Y130: mm4
C132: Moment d'inertie de surface du 2e degré autour de l’axe z | Q132: Iz | S132: = | T132: 2 · | V132: ( bG / 2 )3 · t1 | Z132: + | AB132: s | AC132: + | AD132: bG | AE132: 2 | AF132: ∙ | AG132: bG · t1
V133: 12 | AB133: 2 | AD133: 4 | AG133: 2 | AK133: Théorèmes de Steiner
S134: = | T134: =2*(Q17/2)^3*Q14/12+2*(Q24/2+Q17/4)^2*Q17/2*Q14 -> 657930 | Y134: mm4
C136: Coefficient d'élancement autour de l’axe Z | Q136: lz | S136: = | T136: max. | W136: sk,z / ( Iz / ( t1 · bG ))0,5 | AK136: Côté sécurité sans tenir compte des bois intermédiaires
W137: e / ( t1 · ( bG + s )3 / ( 12 · ( t1 · ( bG + s ))))0,5
S138: = | T138: =IF(Q32="non",MAX(Q34/SQRT(T134/(Q14*Q17)),Q26/SQRT(Q14*(Q17+Q24)^3/(12*Q14*(Q17+Q24)))),"-") -> -
C140: Coefficient d'élancement de flambement autour de l’axe y entre les échelons | Q140: ly,1 | S140: = | U140: e | AC140: = | AD140: =Q26/SQRT(Q17*Q14^3/(12*Q14*Q17)) -> 34.46781107 | AK140: Côté sécurité sans tenir compte des bois intermédiaires
U141: ( bG · t13 / ( 12 · t1 · bG ))0,5
C143: Coefficient d'élancement de flambement autour de l’axe y avec Iy,eff | Q143: ly,eff | S143: = | U143: sk,y | AC143: = | AD143: =Q36/SQRT(T130/(Gamma!E16+Gamma!E18)) -> 14.40702644 | AK143: Côté sécurité sans tenir compte des bois intermédiaires
U144: ( Iy,eff / ( A1 + A2 ))0,5
C146: Coefficient d'élancement déterminant autour de l’axe y | Q146: ly | S146: = | U146: max. { ly,1 ; ly,eff } | AA146: = | AB146: =MAX(AD140,AD143) -> 34.46781107
C148: Coefficient d'élancement déterminant | Q148: l | S148: = | U148: max. { ly ; lz } | AA148: = | AB148: =MAX(T138,AB146) -> 34.46781107
Q150: lrel,c | S150: = | U150: l | V150: · | X150: fc,0,k,1 | AB150: 0.5 | AC150: = | AD150: =AB148/PI()*SQRT(Geometrie!B22/Geometrie!B25*3/2) -> 0.5124755018
U151: p | X151: E0,05
Q153: k | S153: = | T153: 0,5 · ( 1 + bc · ( lrel,c - 0,3 ) + lrel,c2 ) | AE153: = | AF153: =0.5*(1+0.2*(AD150-0.3)+AD150^2) -> 0.6525631201
C155: Coefficient de flambement | Q155: kc | S155: = | T155: min. | W155: 1 | AE155: = | AF155: =MIN(1,1/(AF153+SQRT(AF153^2-AD150^2))) -> 0.9464744267
W156: 1 / ( k + ( k2 - lrel,c2 )0,5 )
C159: Vérifications
C160: Contrainte dans le centre de gravité due à l’action du vent | Q160: ss,d,1 | S160: = | U160: Md · g1 · a1 | Z160: = | AA160: =Q46*10^6/T130*'NW nachgiebig verb. Biegeträger'!W111*Gamma!D16 -> 1.825795902
U161: Iy,eff
Q163: ss,d,2 | S163: = | T163: - | U163: Md · g2 · a2 | Z163: = | AA163: =-Q46*10^6/T130*AF111*Gamma!D18 -> -1.825795902
U164: Iy,eff
C166: Contrainte de flexion au bord due à l’action du vent | Q166: sr,d,1 | S166: = | U166: Md · ( g1 · a1 + 0,5 · t1 ) | AC166: = | AD166: =Q46*10^6/T130*(W111*Gamma!D16+0.5*Gamma!C16) -> 7.553610982
U167: Iy,eff
Q169: sr,d,2 | S169: = | T169: - | U169: Md · ( g2 · a2 + 0,5 · t2 ) | AC169: = | AD169: =-Q46*10^6/T130*(AF111*Gamma!D18+0.5*Gamma!C18) -> -7.553610982
U170: Iy,eff
T178: =TODAY() -> 2024-02-09
T179: =CONCATENATE("Page 4/",$AM$2) -> Page 4/7
R180: Projet de construction : | X180: =IF(Eingabe!$X$3="","",Eingabe!$X$3) -> travaux de rénovation Dupont
R181: Position : | X181: =IF(Eingabe!$X$4="","",Eingabe!$X$4) -> 20.1 Poutre de mur-rideau
AJ182: =Eingabe!$AJ$5 -> © 2024
A183: Landstraße 25, D - 79809 Weilheim - Bannholz
C185: =C126 -> Calcul de entretoise U*psi selon DIN EN 1995 [mars 2020]
C187: Membrure comprimée
C188: Contrainte de flexion au bord due à l’action du vent | Q188: sm,d,1 | S188: = | U188: sr,d,1 | X188: = | Y188: =AD166 -> 7.553610982
Q190: fm,d,1 | S190: = | U190: kmod | W190: · | X190: fm,k,1 | Z190: = | AA190: =Q39/Q40*Geometrie!B24 -> 11.07692308
U191: gM
C193: Vérification | Q193: hm,1 | S193: = | T193: =ABS(Y188)/AA190 -> 0.6819232137
C195: Contrainte de compression due à Nd et Fsd,tot et ss,d,1 | Q195: sc,d,1 | S195: = | U195: Nd + Fv,d,tot | Y195: + | Z195: | min { 0 ; ss,d,1 } | | AK195: | min { 0 ; ss,d,1 } | signifie : Ajouter uniquement les contraintes de compression quantitatives dans la membrure comprimée (en cas de succion du vent)
U196: t1 · bG
S197: = | T197: =(Q43+Q49)*1000/(Q14*Q17)+ABS(MIN(0,AA160)) -> 5.485997596
Q199: fc,0,d,1 | S199: = | U199: kmod | W199: · | X199: fc,0,k,1 | Z199: = | AA199: =Q39/Q40*Geometrie!B22 -> 11.07692308
U200: gM
C202: Vérification | Q202: hc,1 | S202: = | T202: =T197/AA199/AF155 -> 0.5232721116
C204: Membrure comprimée | Q204: h1 | S204: = | U204: hm,1 + hc,1 | Y204: = | AA204: =T193+T202 -> 1.205195325
C207: Membrure de façade
C208: Contrainte de flexion due à l’action du vent entre les échelons | Q208: sm,zw,2 | S208: = | U208: q'h,d · e2 / 8 | Y208: = | Z208: =Q45*(Q26/1000)^2/8*10^6/(Q17*Q15^2/6) -> 1.213732572
U209: bG · t22 / 6
C211: Contrainte de flexion au bord due à l’action du vent | Q211: sm,d,2 | S211: = | U211: sr,d,2 | W211: = | X211: =AD169 -> -7.553610982
Q213: fm,d,2 | S213: = | U213: kmod | W213: · | X213: fm,k,2 | Z213: = | AA213: =Q39/Q40*Geometrie!C24 -> 11.07692308
U214: gM
C216: Vérification | Q216: hm,2 | S216: = | U216: | sm,zw,2 | + | sm,d,2 | | AB216: = | AD216: =MAX(ABS(Z208)+ABS(X211))/AA213 -> 0.7914962931
U217: fm,d,2
C219: Contrainte de traction due à Fsd et ss,d,2 | Q219: st,d,2 | S219: = | U219: Fv,d,tot | X219: + | Y219: max. { 0 ; ss,d,2 } | AD219: = | AE219: =Q49*1000/Q15/Q17+MAX(AA163,0) -> 5.485997596
U220: t2 · bG
Q222: ft,0,d,2 | S222: = | U222: kmod | W222: · | X222: ft,0,k,2 | Z222: = | AA222: =Q39/Q40*Geometrie!C23 -> 5.884615385
U223: gM
C225: Vérification | Q225: ht,2 | S225: = | T225: =AE219/AA222 -> 0.9322610294
C227: Membrure de façade | Q227: h2 | S227: = | U227: hm,2 + ht,2 | Y227: = | AA227: =AD216+T225 -> 1.723757323
T237: =TODAY() -> 2024-02-09
T238: =CONCATENATE("Page 5/",$AM$2) -> Page 5/7
R239: Projet de construction : | X239: =IF(Eingabe!$X$3="","",Eingabe!$X$3) -> travaux de rénovation Dupont
R240: Position : | X240: =IF(Eingabe!$X$4="","",Eingabe!$X$4) -> 20.1 Poutre de mur-rideau
AJ241: =Eingabe!$AJ$5 -> © 2024
A242: Landstraße 25, D - 79809 Weilheim - Bannholz
C244: =C185 -> Calcul de entretoise U*psi selon DIN EN 1995 [mars 2020]
C245: Échelons
C246: Nombre d’échelons | P246: n | R246: = | T246: lE / e | W246: = | X246: =ROUNDDOWN(Q31/Q26,0) -> 7 | AC246: (arrondi)
C248: Entraxe effectif des échelons | P248: e' | R248: = | T248: lE / n | W248: = | X248: =Q31/X246 -> 420
C250: Hauteur des surfaces de contact | P250: hf | R250: = | T250: hs | V250: = | W250: =Q23 -> 62
C252: Largeur des surfaces de contact | P252: bf,1 | R252: = | T252: t1 | V252: = | W252: =Q14 -> 40
P253: bf,2 | R253: = | T253: t2 | V253: = | W253: =Q15 -> 40
C255: Surface des joints de collage | P255: Af,1 | R255: = | T255: hf · bf,1 | X255: = | Y255: =W250*W252 -> 2480
P256: Af,2 | R256: = | T256: hf · bf,2 | X256: = | Y256: =W250*W253 -> 2480
C258: Moment d'inertie polaire des surfaces de contact | P258: Ip,1 | R258: = | T258: hf3 · bf,1 | W258: + | X258: hf · bf,13 | AB258: = | AC258: =(W250^3*W252+W250*W252^3)/12 -> 1125093.333 | AH258: mm4
T259: 12 | X259: 12
P261: Ip,2 | R261: = | T261: hf3 · bf,2 | W261: + | X261: hf · bf,23 | AB261: = | AC261: =(W250^3*W253+W250*W253^3)/12 -> 1125093.333 | AH261: mm4
T262: 12 | X262: 12
C264: Sollicitations dues à la charge de façade
C265: Force verticale par échelon | P265: TFs | R265: = | T265: Fv,d,tot | W265: = | X265: =Q49*1000/X246 -> 1222.59375
T266: n
C268: Moment sur la surface de collage | P268: MFs,1 | R268: = | T268: TFs · ( h - t1 / 2 ) · cj,1 | AC268: = | AD268: =X265*(Q25-Q14/2)*Gamma!J4/(Gamma!J4+Gamma!J8) -> 134485.3125
T269: cj,1 + cj,2
P271: MFs,2 | R271: = | T271: TFs · ( h - t1 / 2 ) · cj,2 | AC271: = | AD271: =X265*(Q25-Q14/2)*Gamma!J8/(Gamma!J4+Gamma!J8) -> 134485.3125
T272: cj,1 + cj,2
C274: Sollicitation due à Nd (barre comprimée)
C275: Élancement dans le sens z | P275: ly,eff | R275: = | S275: =AD143 -> 14.40702644
P277: lrel,c | R277: = | T277: ly,eff | V277: · | X277: fc,0,k,1 | AB277: 0.5 | AC277: = | AD277: =S275/PI()*SQRT(Geometrie!B22/Geometrie!B25*3/2) -> 0.2142070493
T278: p | X278: E0,05
P280: k | R280: = | S280: 0,5 · ( 1 + bc · ( lrel,c - 0,3 ) + lrel,c2 ) | AD280: = | AE280: =0.5*(1+0.2*(AD277-0.3)+AD277^2) -> 0.5143630349
C282: Coefficient de flambement | P282: kc | R282: = | S282: min. | V282: 1 | AD282: = | AE282: =MIN(1,1/(AE280+SQRT(AE280^2-AD277^2))) -> 1
V283: 1 / ( k + ( k2 - lrel,c2 )0,5 )
P285: VN | R285: = | T285: Nd / ( 120 · kc ) | AA285: ly,eff ≤ 30
T286: Nd · ly,eff / ( 3600 · kc ) | AA286: 30 < ly,eff < 60 | AF286: = | AG286: =IF(S275>=60,Q43/(60*AE282),IF(S275<=30,Q43/(120*AE282),Q43*S275/(3600*AE282)))*1000 -> 1.125e-12
T287: Nd / ( 60 · kc ) | AA287: ly,eff ≥ 60
C289: Effort de cisaillement | P289: TN | R289: = | T289: VN · e' | W289: = | X289: =AG286*X248/Gamma!C11 -> 2.3625e-12
T290: a
C292: Moment sur la surface de contact | P292: MN,1 | R292: = | T292: TN · a · cj,1 | Y292: = | Z292: =X289*Gamma!C11*Gamma!J4/(Gamma!J4+Gamma!J8) -> 2.3625e-10
T293: cj,1 + cj,2
T296: =TODAY() -> 2024-02-09
T297: =CONCATENATE("Page 6/",$AM$2) -> Page 6/7
R298: Projet de construction : | X298: =IF(Eingabe!$X$3="","",Eingabe!$X$3) -> travaux de rénovation Dupont
R299: Position : | X299: =IF(Eingabe!$X$4="","",Eingabe!$X$4) -> 20.1 Poutre de mur-rideau
AJ300: =Eingabe!$AJ$5 -> © 2024
A301: Landstraße 25, D - 79809 Weilheim - Bannholz
C303: =C244 -> Calcul de entretoise U*psi selon DIN EN 1995 [mars 2020]
P304: MN,2 | R304: = | T304: TN · a · cj,2 | Y304: = | Z304: =X289*Gamma!C11*Gamma!J8/(Gamma!J4+Gamma!J8) -> 2.3625e-10
T305: cj,1 + cj,2
C307: Sollicitation due à l’action du vent
C308: Effort de cisaillement dans le joint flexible | P308: TQ | R308: = | T308: Qd · g2 · E2 · A2 · a2 · e | AB308: = | AC308: =Q47*AF111*Q20*Gamma!E18*Gamma!D18*Q26/Gamma!C10/Gamma!B20*1000 -> 1542.313142
T309: Iy,eff · E1
C311: Moment sur la surface de contact | P311: MQ,1 | R311: = | T311: TQ · a · cφ,1 | Y311: = | Z311: =AC308*Gamma!C11*Gamma!J4/(Gamma!J4+Gamma!J8) -> 154231.3142
T312: cj,1 + cj,2
P314: MQ,2 | R314: = | T314: TQ · a · cφ,2 | Y314: = | Z314: =AC308*Gamma!C11*Gamma!J8/(Gamma!J4+Gamma!J8) -> 154231.3142
... 86 more rows

Sheet NW ohne nachgiebigen Verbund
T1: =TODAY() -> 2024-02-09 | AN1: Nombre de pages
T2: =CONCATENATE("Page 1/",$AN$2) -> Page 1/6 | AN2: 6
R3: Projet de construction : | X3: =IF(Eingabe!$X$3="","",Eingabe!$X$3) -> travaux de rénovation Dupont
R4: Position : | X4: =IF(Eingabe!$X$4="","",Eingabe!$X$4) -> 20.1 Poutre de mur-rideau
AJ5: =Eingabe!$AJ$5 -> © 2024
A6: Landstraße 25, D - 79809 Weilheim - Bannholz
C8: =Eingabe!C8 -> Calcul de entretoise U*psi selon DIN EN 1995 [mars 2020]
C10: Type : | J10: =Eingabe!Q11 -> U*psi S
C11: Hauteur de construction : | J11: =Eingabe!Q12 -> 240
C13: Géométrie
C14: Membrure à fixer | N14: t1 | P14: = | Q14: =IF(J10="U*psi F",VLOOKUP(J11,Geometrie!B4:I10,2,FALSE),IF(J10="U*psi S",VLOOKUP(J11,Geometrie!B12:I12,2,FALSE),"")) -> 40
C15: Membrure côté façade | K15: t2 ≤ t1! | N15: t2 | P15: = | Q15: =IF(J10="U*psi F",VLOOKUP(J11,Geometrie!B4:I10,3,FALSE),IF(J10="U*psi S",VLOOKUP(J11,Geometrie!B12:I12,3,FALSE),"")) -> 40
C17: Somme de la largeur des deux membrures | N17: bG | P17: = | Q17: =IF(J10="U*psi F",VLOOKUP(J11,Geometrie!B4:I10,4,FALSE),IF(J10="U*psi S",VLOOKUP(J11,Geometrie!B12:I12,4,FALSE),""))-Q24 -> 39
C18: Classe de résistance | Q18: C24
C19: Module d'élasticité | N19: E1 | P19: = | Q19: 11000
N20: E2 | P20: = | Q20: =Q19 -> 11000
C22: Échelons
C23: Hauteur | N23: hs | P23: = | Q23: =IF(J10="U*psi F",VLOOKUP(J11,Geometrie!B4:I12,5,FALSE),IF(J10="U*psi S",VLOOKUP(J11,Geometrie!B12:I12,5,FALSE),"")) -> 62
C24: Largeur | N24: s | P24: = | Q24: =IF(J10="U*psi F",VLOOKUP(J11,Geometrie!B4:I10,6,FALSE),IF(J10="U*psi S",VLOOKUP(J11,Geometrie!B12:I12,6,FALSE),"")) -> 20
C25: Longueur | N25: h | P25: = | Q25: =IF(J10="U*psi F",VLOOKUP(J11,Geometrie!B4:I10,7,FALSE),IF(J10="U*psi S",VLOOKUP(J11,Geometrie!B12:I12,7,FALSE),"")) -> 240
C26: Entraxe des échelons | N26: e | P26: = | Q26: =IF(J10="U*psi F",VLOOKUP(J11,Geometrie!B4:I10,8,FALSE),IF(J10="U*psi S",VLOOKUP(J11,Geometrie!B12:I12,8,FALSE),"")) -> 398
C27: Classe de résistance | Q27: C24
C28: Module d'élasticité | N28: EBH | P28: = | Q28: 11000
C29: Module de cisaillement | N29: G | P29: = | Q29: 690
C31: Longueur de l’élément | N31: l E | P31: = | Q31: =Eingabe!Q13 -> 2940
C32: Flambement dans le sens y évité | Q32: =Eingabe!Q25 -> oui
C34: Longueur de flambement autour de l’axe z | N34: sk,z | P34: = | Q34: =IF(Q32="non",IF(Eingabe!Q28="dans chaque travée",l,IF(Eingabe!Q28="une travée sur deux",2*l,FALSE())),0) -> 0 | AK34: Hypothèse : dimensionnement suffisant du raccord au mur porteur
C36: Longueur de flambement autour de l’axe y | N36: sk,y | P36: = | Q36: =IF(Eingabe!Q28="dans chaque travée",l,IF(Eingabe!Q28="une travée sur deux",2*l,FALSE())) -> 398 | AL36: Hauteur de traverse | AM36: Centre de travée | AN36: chaque travée | AO36: une travée sur deux
C39: Fakteur modificatif | N39: kmod | P39: = | Q39: =Eingabe!Q72 -> 0.9 | AK39: Cas 1 | AL39: x | AN39: x
C40: Coefficient partiel de sécurité | N40: gM | P40: = | Q40: =Eingabe!Q73 -> 1.3 | AK40: Cas 2 | AM40: x | AN40: x
AK41: Cas 3 | AL41: x | AO41: x
C42: Actions | AK42: Cas 4 | AN42: x | AO42: x
C43: Effort normal dans la membrure la plus épaisse | N43: Nd | P43: = | Q43: =Eingabe!AD81 -> 1.35e-13 | AK43: Cas actuel : | AN43: =IF(AND(Eingabe!Q29="à hauteur des échelons",Eingabe!Q28="dans chaque travée"),"Cas 1",IF(AND(Eingabe!Q29="entre les échelons",Eingabe!Q28="dans chaque travée"),"Cas 2",IF(AND(Eingabe!Q29="à hauteur des échelons",Eingabe!Q28="une travée sur deux"),"Cas 3",IF(AND(Eingabe!Q29="entre les échelons",Eingabe!Q28="une travée sur deux"),"Cas 4",FALSE())))) -> Cas 2
C45: Charge transversale par entretoise | N45: q'h,d | P45: = | Q45: =IF(Eingabe!P90="Allemagne",Eingabe!AC103,Eingabe!Q103) -> 0.6375 | AK45: Moment M | AL45: Membrure comprimée | AO45: Membrure de façade | AS45: Effort tranchant Q | AT45: Membrure comprimée | AW45: Membrure de façade
N46: Md,1 | P46: = | Q46: =AL51 -> 0.0189847194 | AL46: U*psi F | AM46: U*psi S | AN46: U*psi T | AO46: U*psi F | AP46: U*psi S | AQ46: U*psi T | AT46: U*psi F | AU46: U*psi S | AV46: U*psi T | AW46: U*psi F | AX46: U*psi S | AY46: U*psi T
N47: Md,2 | P47: = | Q47: =AO51 -> 0.01262281875 | AK47: Cas 1 | AL47: =0/1*q*l^2/10^6 -> 0 | AM47: =0/1*q*l^2/10^6 -> 0 | AN47: =0/1*q*l^2/10^6 -> 0 | AO47: =0.104*q*l^2/10^6 -> 0.0105021852 | AP47: =0.104*q*l^2/10^6 -> 0.0105021852 | AQ47: =0.103*q*l^2/10^6 -> 0.01040120265 | AS47: Cas 1 | AT47: =0/1*q*l/10^3 -> 0 | AU47: =0/1*q*l/10^3 -> 0 | AV47: =0*q*l/10^3 -> 0 | AW47: =0.602*q*l/10^3 -> 0.15274245 | AX47: =0.602*q*l/10^3 -> 0.15274245 | AY47: =0.604*q*l/10^3 -> 0.1532499
N48: Qd,1 | P48: = | Q48: =AT51 -> 0.1654287 | AK48: Cas 2 | AL48: =0.188*q*l^2/10^6 -> 0.0189847194 | AM48: =0.188*q*l^2/10^6 -> 0.0189847194 | AN48: =0.196*q*l^2/10^6 -> 0.0197925798 | AO48: =0.125*q*l^2/10^6 -> 0.01262281875 | AP48: =0.125*q*l^2/10^6 -> 0.01262281875 | AQ48: =0.109*q*l^2/10^6 -> 0.01100709795 | AS48: Cas 2 | AT48: =0.652*q*l/10^3 -> 0.1654287 | AU48: =0.652*q*l/10^3 -> 0.1654287 | AV48: =0.65*q*l/10^3 -> 0.16492125 | AW48: =0.623*q*l/10^3 -> 0.158070675 | AX48: =0.623*q*l/10^3 -> 0.158070675 | AY48: =0.609*q*l/10^3 -> 0.154518525
N49: Qd,2 | P49: = | Q49: =AW51 -> 0.16492125 | AK49: Cas 3 | AL49: =0.05*q*(2*l)^2/10^6 -> 0.02019651 | AM49: =0.05*q*(2*l)^2/10^6 -> 0.02019651 | AN49: =0.09*q*(2*l)^2/10^6 -> 0.036353718 | AO49: =0.075*q*(2*l)^2/10^6 -> 0.030294765 | AP49: =0.075*q*(2*l)^2/10^6 -> 0.030294765 | AQ49: =0.028*q*(2*l)^2/10^6 -> 0.0113100456 | AS49: Cas 3 | AT49: =0.188*q*(2*l)/10^3 -> 0.0954006 | AU49: =0.188*q*(2*l)/10^3 -> 0.0954006 | AV49: =0.324*q*(2*l)/10^3 -> 0.1644138 | AW49: =0.418*q*(2*l)/10^3 -> 0.2121141 | AX49: =0.418*q*(2*l)/10^3 -> 0.2121141 | AY49: =0.28*q*(2*l)/10^3 -> 0.142086
AK50: Cas 4 | AL50: =0.101*q*(2*l)^2/10^6 -> 0.0407969502 | AM50: =0.101*q*(2*l)^2/10^6 -> 0.0407969502 | AN50: =0.272*q*(2*l)^2/10^6 -> 0.1098690144 | AO50: =0.03*q*(2*l)^2/10^6 -> 0.012117906 | AP50: =0.03*q*(2*l)^2/10^6 -> 0.012117906 | AQ50: =0.043*q*(2*l)^2/10^6 -> 0.0173689986 | AS50: Cas 4 | AT50: =0.548*q*(2*l)/10^3 -> 0.2780826 | AU50: =0.548*q*(2*l)/10^3 -> 0.2780826 | AV50: =0.762*q*(2*l)/10^3 -> 0.3866769 | AW50: =0.287*q*(2*l)/10^3 -> 0.14563815 | AX50: =0.287*q*(2*l)/10^3 -> 0.14563815 | AY50: =0.337*q*(2*l)/10^3 -> 0.17101065
C51: Charge verticale de façade totale | N51: Fv,d,tot | P51: = | Q51: =Eingabe!AD86 -> 8.55815625 | AL51: =IF(typ=AL46,VLOOKUP(AN43,AK47:AN50,2),IF(typ=AM46,VLOOKUP(AN43,AK47:AN50,3),IF(typ=AN46,VLOOKUP(AN43,AK47:AN50,4)))) -> 0.0189847194 | AO51: =IF(typ=AO46,VLOOKUP(AN43,AK47:AQ50,5),IF(typ=AP46,VLOOKUP(AN43,AK47:AQ50,6),IF(typ=AQ46,VLOOKUP(AN43,AK47:AQ50,7)))) -> 0.01262281875 | AT51: =IF(typ=AT46,VLOOKUP(AN43,AS47:AV50,2),IF(typ=AU46,VLOOKUP(AN43,AS47:AV50,2),IF(typ=AV46,VLOOKUP(AN43,AS47:AV50,3)))) -> 0.1654287 | AW51: =IF(typ=AW46,VLOOKUP(AN43,AS47:AY50,4),IF(typ=AU46,VLOOKUP(AN43,AS47:AY50,4),IF(typ=AY46,VLOOKUP(AN43,AS47:AY50,5)))) -> 0.16492125
AO53: Les valeurs sont issues de RSTAB de Rouven
T58: =TODAY() -> 2024-02-09
T59: =CONCATENATE("Page 2/",$AN$2) -> Page 2/6
R60: Projet de construction : | X60: =IF(Eingabe!$X$3="","",Eingabe!$X$3) -> travaux de rénovation Dupont
R61: Position : | X61: =IF(Eingabe!$X$4="","",Eingabe!$X$4) -> 20.1 Poutre de mur-rideau
AJ62: =Eingabe!$AJ$5 -> © 2024
A63: Landstraße 25, D - 79809 Weilheim - Bannholz
C65: =C8 -> Calcul de entretoise U*psi selon DIN EN 1995 [mars 2020]
C67: Détermination des efforts internes pour membrures reliées entre elles de manière flexible au cisaillement
C69: Entraxe des membrures (centre de gravité) | N69: a | O69: = | P69: h | Q69: - | R69: t1 | S69: - | T69: t2 | V69: = | W69: =Gamma!C11 -> 200
R70: 2 | T70: 2
C71: Entraxe des centres de gravité (sans g) | N71: a1 | O71: = | P71: h | Q71: - | R71: t1 | S71: - | T71: bG · t1 · ( h - t1 / 2 ) + bG · t2 · t2 / 2 | AE71: = | AF71: =Gamma!C12 -> 100
R72: 2 | T72: bG · t1 + bG · t2
C73: Entraxe des centres de gravité (sans g) | N73: a2 | O73: = | P73: a | Q73: - | R73: a1 | T73: = | U73: =Gamma!C13 -> 100
C75: Surface de la section transversale de la membrure comprimée | S75: A1 | T75: = | U75: t1 · bG | X75: = | Y75: =Gamma!E16 -> 1560
C76: Surface de la section transversale de la membrure de façade | S76: A2 | T76: = | U76: t2 · bG | X76: = | Y76: =Gamma!E18 -> 1560
C78: Rigidités torsionnelles pour déterminer la répartition des moments sur les membrures | Z78: EN 1995-1-1 Annexe B
T79: Membrure comprimée | AD79: Membrure de façade
C80: 1. Déformation de flexion des membrures
C81: 1 / C1,i | F81: = | H81: ai2 · e | T81: 1 / C1,1 | V81: = | W81: =Gamma!B$3 -> 0.0001884469697 | AC81: 1 / C1,2 | AE81: = | AF81: =Gamma!B$7 -> 0.0001884469697
H82: 12 · Ei / gM · (bG · ti3 / 12 )
C84: 5. Rotation de torsion dans les surfaces de raccord
C85: 1 / C5,i | F85: = | H85: ai2 | T85: 1 / C5,1 | V85: = | W85: =Gamma!F$3 -> 0.001925766159 | AC85: 1 / C5,2 | AE85: = | AF85: =Gamma!F$7 -> 0.001925766159
H86: 2 · IP,i · K / gM
C88: cφ,i | E88: = | G88: ai2 | T88: cφ,1 | V88: = | W88: =Gamma!J4 -> 4729892.113 | AC88: cφ,2 | AE88: = | AF88: =Gamma!J8 -> 4729892.113
G89: 1 / C1,i + 1 / C5,i
C91: gi | E91: = | G91: 1 | H91: + | I91: p2 · Ei / gM · ti · bG · e | P91: -1 | U91: g1 | V91: = | W91: =1/(1+PI()^2*Geometrie!B26*Q14*Q17*Q26/Q31^2/Gamma!B4) -> 0.06375191503 | AD91: g2 | AE91: = | AF91: =1/(1+PI()^2*Geometrie!C26*Q15*Q17*Q26/Q31^2/Gamma!B8) -> 0.06375191503
I92: lE2 · Ci
T116: =TODAY() -> 2024-02-09
T117: =CONCATENATE("Page 3/",$AN$2) -> Page 3/6
R118: Projet de construction : | X118: =IF(Eingabe!$X$3="","",Eingabe!$X$3) -> travaux de rénovation Dupont
R119: Position : | X119: =IF(Eingabe!$X$4="","",Eingabe!$X$4) -> 20.1 Poutre de mur-rideau
AJ120: =Eingabe!$AJ$5 -> © 2024
A121: Landstraße 25, D - 79809 Weilheim - Bannholz
C123: =C65 -> Calcul de entretoise U*psi selon DIN EN 1995 [mars 2020]
C125: Caractéristiques de la section
C127: Iy membrure comprimée | O127: Iy,1 | Q127: = | S127: bG · t13 | V127: = | W127: =Q17*Q14^3/12 -> 208000 | AB127: mm4
S128: 12
C130: Iz membrure comprimée | O130: Iz,1 | Q130: = | R130: 2 · | T130: (bG / 2)3 · t1 | X130: + | Z130: s | AA130: + | AB130: bG | AC130: 2 | AD130: ∙ | AE130: bG · t1
T131: 12 | Z131: 2 | AB131: 4 | AE131: 2
Q132: = | R132: =2*(Q17/2)^3*Q14/12+2*(Q24/2+Q17/4)^2*Q17/2*Q14 -> 657930 | W132: mm4
C134: Iy membrure de façade | O134: Iy,2 | Q134: = | S134: bG · t23 | V134: = | W134: =Q17*Q15^3/12 -> 208000 | AB134: mm4
S135: 12
C137: Iz membrure de façade | O137: Iz,2 | Q137: = | R137: 2 · | T137: (bG / 2)3 · t2 | X137: + | Z137: s | AA137: + | AB137: bG | AC137: 2 | AD137: ∙ | AE137: bG · t2
T138: 12 | Z138: 2 | AB138: 4 | AE138: 2
Q139: = | R139: =2*(Q17/2)^3*Q15/12+2*(Q24/2+Q17/4)^2*Q17/2*Q15 -> 657930 | W139: mm4
C141: Coefficient d'élancement autour de l’axe Z | O141: lz | Q141: = | R141: max. | U141: sk,z / (Iz,1 / ( t1 · bG ))0,5 | AH141: = | AI141: =IF(Q32="non",MAX(Q34/SQRT(R132/(Q14*Q17)),Q26/SQRT(Q14*(Q17+Q24)^3/(12*Q14*(Q17+Q24)))),"-") -> - | AK141: Côté sécurité sans tenir compte des bois intermédiaires
U142: e / ( t1 · ( bG + s )3 / ( 12 · ( t1 · ( bG + s ))))0,5
C144: Coefficient d'élancement autour de l’axe y entre les échelons | O144: ly,1 | Q144: = | S144: e | Y144: = | AA144: =Q26/SQRT(W127/(Q14*Q17)) -> 34.46781107 | AK144: Côté sécurité sans tenir compte des bois intermédiaires
S145: (Iy,1 / ( t1 · bG ))0,5
C147: Coefficient d'élancement autour de l’axe y entre les fixations | O147: ly,2 | Q147: = | S147: sk,y | Y147: = | AA147: =Q36/SQRT(W127/(Q14*Q17)) -> 34.46781107 | AK147: Côté sécurité sans tenir compte des bois intermédiaires
S148: (Iy,1 / ( t1 · bG ))0,5
C150: Coefficient d'élancement déterminant autour de l’axe y | O150: ly | Q150: = | S150: max. { ly,1 ; ly,2 } | Y150: = | AA150: =MAX(AA144,AA147) -> 34.46781107
C152: Coefficient d'élancement déterminant | O152: l | Q152: = | S152: max. { ly ; lz } | Y152: = | AA152: =MAX(AI141,AA150) -> 34.46781107
O154: lrel,c | Q154: = | S154: l | T154: · | V154: fc,0,k,1 | Z154: 0.5 | AA154: = | AB154: =AA152/PI()*SQRT(Geometrie!B22/Geometrie!B25*3/2) -> 0.5124755018
S155: p | V155: E0,05
O157: k | Q157: = | R157: 0,5 · ( 1 + bc · ( lrel,c - 0,3 ) + lrel,c2 ) | AC157: = | AD157: =0.5*(1+0.2*(AB154-0.3)+AB154^2) -> 0.6525631201
C159: Coefficient de flambement | O159: kc | Q159: = | R159: min. | U159: 1 | AC159: = | AD159: =MIN(1,1/(AD157+SQRT(AD157^2-AB154^2))) -> 0.9464744267
U160: 1 / ( k + ( k2 - lrel,c2 )0,5 )
T174: =TODAY() -> 2024-02-09
T175: =CONCATENATE("Page 4/",$AN$2) -> Page 4/6
R176: Projet de construction : | X176: =IF(Eingabe!$X$3="","",Eingabe!$X$3) -> travaux de rénovation Dupont
R177: Position : | X177: =IF(Eingabe!$X$4="","",Eingabe!$X$4) -> 20.1 Poutre de mur-rideau
AJ178: =Eingabe!$AJ$5 -> © 2024
A179: Landstraße 25, D - 79809 Weilheim - Bannholz
C181: =C123 -> Calcul de entretoise U*psi selon DIN EN 1995 [mars 2020]
C183: Vérifications
C184: Contrainte dans le centre de gravité due à l’action du vent | O184: ss,d,1 | Q184: = | S184: 0
O186: ss,d,2 | Q186: = | S186: 0
C188: Contrainte de flexion au bord due à l’action du vent | O188: sr,d,1 | Q188: = | S188: Md,1 | U188: · | V188: t1 | X188: = | Y188: =Q46*10^6/W127*Q14/2 -> 1.825453788
S189: Iy,1 | V189: 2
O191: sr,d,2 | Q191: = | R191: - | S191: Md,2 | U191: · | V191: t2 | X191: = | Y191: =-Q47*10^6/W134*Q15/2 -> -1.213732572
S192: Iy,2 | V192: 2
C195: Membrure comprimée
C196: Contrainte de flexion au bord due à l’action du vent | O196: sm,d,1 | Q196: = | S196: sr,d,1 | V196: = | W196: =Y188 -> 1.825453788
O198: fm,d,1 | Q198: = | S198: kmod | U198: · | V198: fm,k,1 | X198: = | Y198: =Q39/Q40*Geometrie!B24 -> 11.07692308
S199: gM
C201: Vérification | O201: hm,1 | Q201: = | R201: =ABS(W196)/Y198 -> 0.1647979115
C203: Contrainte de compression due à Nd et Fsd,tot | O203: sc,d,1 | Q203: = | S203: Nd + Fv,d,tot | X203: = | Y203: =(Q43+Q51)*1000/(Q14*Q17)/AD159 -> 5.796244929
S204: kc · t1 · bG
O206: fc,0,d,1 | Q206: = | S206: kmod | U206: · | V206: fc,0,k,1 | X206: = | Y206: =Q39/Q40*Geometrie!B22 -> 11.07692308
S207: gM
C209: Vérification | O209: hc,1 | Q209: = | R209: =Y203/Y206 -> 0.5232721116
C211: Membrure comprimée | O211: h1 | Q211: = | S211: hm,1 + hc,1 | W211: = | Y211: =R201+R209 -> 0.6880700231
C214: Membrure de façade
C215: Contrainte de flexion au bord due à l’action du vent | O215: sm,d,2 | Q215: = | S215: sr,d,2 | V215: = | W215: =Y191 -> -1.213732572
O217: fm,d,2 | Q217: = | S217: kmod | U217: · | V217: fm,k,2 | X217: = | Y217: =Q39/Q40*Geometrie!C24 -> 11.07692308
S218: gM
C220: Vérification | O220: hm,2 | Q220: = | R220: =ABS(W215)/Y217 -> 0.1095730794
C222: Contrainte de traction due à Fsd,tot | O222: st,d,2 | Q222: = | S222: Fv,d,tot | W222: = | X222: =Q51*1000/Q15/Q17 -> 5.485997596
S223: t2 · bG
O225: ft,0,d,2 | Q225: = | S225: kmod | U225: · | V225: ft,0,k,2 | X225: = | Y225: =Q39/Q40*Geometrie!C23 -> 5.884615385
S226: gM
C228: Vérification | O228: ht,2 | Q228: = | R228: =X222/Y225 -> 0.9322610294
C230: Membrure de façade | O230: h2 | Q230: = | S230: hm,2 + ht,2 | W230: = | Y230: =R220+R228 -> 1.041834109
T232: =TODAY() -> 2024-02-09
T233: =CONCATENATE("Page 5/",$AN$2) -> Page 5/6
R234: Projet de construction : | X234: =IF(Eingabe!$X$3="","",Eingabe!$X$3) -> travaux de rénovation Dupont
R235: Position : | X235: =IF(Eingabe!$X$4="","",Eingabe!$X$4) -> 20.1 Poutre de mur-rideau
AJ236: =Eingabe!$AJ$5 -> © 2024
A237: Landstraße 25, D - 79809 Weilheim - Bannholz
C239: =C181 -> Calcul de entretoise U*psi selon DIN EN 1995 [mars 2020]
C241: Échelons
C242: Nombre d’échelons | P242: n | R242: = | T242: lE / e | W242: = | X242: =ROUNDDOWN(Q31/Q26,0) -> 7 | AC242: (arrondi)
C244: Entraxe effectif des échelons | P244: e' | R244: = | T244: lE / n | W244: = | X244: =Q31/X242 -> 420
C246: Hauteur des surfaces de contact | P246: hf | R246: = | T246: hs | V246: = | W246: =Q23 -> 62
C248: Largeur des surfaces de contact | P248: bf,1 | R248: = | T248: t1 | V248: = | W248: =Q14 -> 40
P249: bf,2 | R249: = | T249: t2 | V249: = | W249: =Q15 -> 40
C251: Surface des joints de collage | P251: Af,1 | R251: = | T251: hf · bf,1 | X251: = | Y251: =W246*W248 -> 2480
P252: Af,2 | R252: = | T252: hf · bf,2 | X252: = | Y252: =W246*W249 -> 2480
C254: Moment d'inertie polaire des surfaces de contact | P254: Ip,1 | R254: = | T254: hf3 · bf,1 | W254: + | X254: hf · bf,13 | AB254: = | AC254: =(W246^3*W248+W246*W248^3)/12 -> 1125093.333 | AH254: mm4
T255: 12 | X255: 12
P257: Ip,2 | R257: = | T257: hf3 · bf,2 | W257: + | X257: hf · bf,23 | AB257: = | AC257: =(W246^3*W249+W246*W249^3)/12 -> 1125093.333 | AH257: mm4
T258: 12 | X258: 12
C261: Sollicitations dues à la charge de façade
C262: Force verticale par échelon | P262: TFs | R262: = | T262: Fv,d,tot | W262: = | X262: =Q51*1000/X242 -> 1222.59375
T263: n
C265: Moment sur la surface de contact | P265: MFs,1 | R265: = | T265: TFs · ( h - t1 / 2 ) · cj,1 | AB265: = | AC265: =X262*(Q25-Q14/2)*Gamma!J4/(Gamma!J4+Gamma!J8) -> 134485.3125
T266: cj,1 + cj,2
P268: MFs,2 | R268: = | T268: TFs · ( h - t1 / 2 ) · cj,2 | AB268: = | AC268: =X262*(Q25-Q14/2)*Gamma!J8/(Gamma!J4+Gamma!J8) -> 134485.3125
T269: cj,1 + cj,2
C272: Sollicitation due à l’action du vent
C273: Effort de cisaillement parallèle aux échelons | P273: TH | R273: = | T273: q'h,d · e | W273: = | X273: =Q26*Q45 -> 253.725
C276: Vérification du cisaillement roulant
C277: Contrainte de cisaillement roulant | P277: tR,V,1 | R277: = | T277: ( TFs2 + TH2 )0,5 | AA277: = | AB277: =SQRT(X262^2+X273^2)/Y251/2 -> 0.2517427431
T278: 2 · Af,1
P280: tR,V,2 | R280: = | T280: ( TFs2 + TH2 )0,5 | AA280: = | AB280: =SQRT(X262^2+X273^2)/Y252/2 -> 0.2517427431
T281: 2 · Af,2
P283: fR,d | R283: = | T283: kmod | V283: · | W283: fR,k | Z283: = | AA283: =Q39/Q40*Geometrie!B31 -> 0.7615384615
T284: gM
C286: Vérification | P286: hR | R286: = | S286: =MAX(AB277,AB280)/AA283 -> 0.3305712788
T290: =TODAY() -> 2024-02-09
T291: =CONCATENATE("Page 6/",$AN$2) -> Page 6/6
R292: Projet de construction : | X292: =IF(Eingabe!$X$3="","",Eingabe!$X$3) -> travaux de rénovation Dupont
R293: Position : | X293: =IF(Eingabe!$X$4="","",Eingabe!$X$4) -> 20.1 Poutre de mur-rideau
AJ294: =Eingabe!$AJ$5 -> © 2024
A295: Landstraße 25, D - 79809 Weilheim - Bannholz
C297: =C239 -> Calcul de entretoise U*psi selon DIN EN 1995 [mars 2020]
C299: Vérification de la torsion
C300: Contrainte de cisaillement en torsion | P300: tTor,M,1 | R300: = | T300: MFs,1 | V300: · | W300: max. { hf / 2 ; bf,1 / 2 } | AD300: = | AF300: =AC265*MAX(W246,W248)/2/AC254/2 -> 1.85275504
W301: Ip,1 / 2
P303: tTor,M,2 | R303: = | T303: MFs,2 | V303: · | W303: max. { hf / 2 ; bf,2 / 2 } | AD303: = | AF303: =AC268*MAX(W246,W249)/2/AC257/2 -> 1.85275504
W304: Ip,2 / 2
P306: fTor,R,d | R306: = | T306: kmod | V306: · | W306: fTor,R,k | Z306: = | AA306: =Q39/Q40*Geometrie!B32 -> 1.384615385
T307: gM
C309: Vérification | P309: hTor | R309: = | S309: =MAX(AF300,AF303)/AA306 -> 1.338100862
C311: Vérification de la surface de contact | P311: h | R311: = | T311: max. | W311: tR,V,1 / fR,d + tTor,M,1 / fTor,R,d | AF311: = | AH311: =MAX(AB277/AA283+AF300/AA306,AB280/AA283+AF303/AA306) -> 1.668672141
W312: tR,V,2 / fR,d + tTor,M,2 / fTor,R,d
C315: Calcul des agrafes dans la membrure de façade
C317: Épaisseur de bois bG /2 | P317: = | Q317: =Klammerverbindung!$D$5 -> 19.5
C318: Épaisseur de bois s | P318: = | Q318: =Klammerverbindung!$D$6 -> 20
C320: Matériau de construction | P320: = | Q320: Bois massif
C321: CS | P321: = | Q321: 2
C322: KD | P322: = | Q322: =Klammerverbindung!$D$11 -> courte
C323: kmod | P323: = | Q323: =Klammerverbindung!$D$12 -> 0.9
C324: Classe de tri de membrure de façade | P324: = | Q324: C24
C325: rk1 | P325: = | Q325: =Klammerverbindung!$D$14 -> 350
C326: Classe de tri de bois coupé en croix | P326: = | Q326: C24
C327: rk2 | P327: = | Q327: =Klammerverbindung!$D$16 -> 350
C328: gM | P328: = | Q328: =Klammerverbindung!$D$17 -> 1.3
... 40 more rows

Sheet Geometrie (hidden)
A1: Caractéristiques de la section U*psi
A3: Type | B3: Hauteur de construction | C3: t1 | D3: t2 | E3: b | F3: hs | G3: s | H3: h | I3: e
A4: F 2940-120/59/40 | B4: 120 | C4: 40 | D4: 40 | E4: 59 | F4: 62 | G4: 20 | H4: 120 | I4: 398
A5: F 2940-160/59/40 | B5: 160 | C5: 40 | D5: 40 | E5: 59 | F5: 62 | G5: 20 | H5: 160 | I5: 398
A6: F 2940-200/59/40 | B6: 200 | C6: 40 | D6: 40 | E6: 59 | F6: 62 | G6: 20 | H6: 200 | I6: 398
A7: F 2940-240/59/40 | B7: 240 | C7: 40 | D7: 40 | E7: 59 | F7: 62 | G7: 20 | H7: 240 | I7: 398
A8: F 2940-300/59/40 | B8: 300 | C8: 40 | D8: 40 | E8: 59 | F8: 62 | G8: 20 | H8: 300 | I8: 398
A9: F 2940-360/59/40 | B9: 360 | C9: 40 | D9: 40 | E9: 59 | F9: 62 | G9: 20 | H9: 360 | I9: 398
A10: F 2940-400/59/40 | B10: 400 | C10: 40 | D10: 40 | E10: 59 | F10: 62 | G10: 20 | H10: 400 | I10: 398
A12: S 2940-240/59/40 | B12: 240 | C12: 40 | D12: 40 | E12: 59 | F12: 62 | G12: 20 | H12: 240 | I12: 398
A19: Caractéristiques mécaniques pour | C19: =Eingabe!Q11 -> U*psi S
B20: Membrure comprimée | C20: Membrure de façade
A21: Bride
A22: fc,0,k | B22: 16 | C22: 16
A23: ft,0,k | B23: 8.5 | C23: 8.5
A24: fm,k | B24: 16 | C24: 16
A25: E0,mean | B25: 11000 | C25: 11000
A26: E1,2 | B26: =B25/1.3 -> 8461.538462 | C26: =C25/1.3 -> 8461.538462
A28: Bois intermédiaire | C28: /gM
A29: Gmean | B29: 690 | C29: =B29/1.3 -> 530.7692308
A30: GR,mean | B30: 50 | C30: =B30/1.3 -> 38.46153846
A31: fR,k | B31: 1.1
A32: fTor,R,k | B32: 2 | D32: (selon DIN EN 338 fv,k=4,0;kcr=0,5)
A33: fv,k | B33: 2

Sheet Gamma (hidden)
A1: Détermination de C1 | J1: Rigidités torsionnelles pour déterminer la répartition des moments
A2: Part | B2: Torsion de barre | C2: Flexion BH | D2: Cisaillement BH | E2: Delta VM | F2: Torsion VM | G2: Somme
A3: 1/C1= | B3: =C12^2*'NW nachgiebig verb. Biegeträger'!Q26/(12*Geometrie!B26*'NW nachgiebig verb. Biegeträger'!Q17*'NW nachgiebig verb. Biegeträger'!Q14^3/12) -> 0.0001884469697 | C3: =(1/24*C11^3-1/3*(C11/2-C12)^3)/(Geometrie!B26*'NW nachgiebig verb. Biegeträger'!Q24*'NW nachgiebig verb. Biegeträger'!Q23^3/12) -> 9.917577304e-05 | D3: =C12/(Geometrie!C29*5/6*'NW nachgiebig verb. Biegeträger'!Q23*'NW nachgiebig verb. Biegeträger'!Q24) -> 0.0001823281907 | E3: ='NW nachgiebig verb. Biegeträger'!Q24/(4*Geometrie!C30*'NW nachgiebig verb. Biegeträger'!Q23*'NW nachgiebig verb. Biegeträger'!Q14) -> 5.241935484e-05 | F3: =C12^2/(2*3/1.3*'NW nachgiebig verb. Biegeträger'!AC258) -> 0.001925766159 | G3: =SUM(B3:F3) -> 0.002448136447
A4: C1= | B4: =1/G3 -> 408.4739644 | C4: N/mm | I4: cφ,1 = | J4: =D16^2/(B3+F3) -> 4729892.113 | K4: Nmm
A5: Détermination de C3
A6: Part | B6: Torsion de barre | C6: Flexion BH | D6: Cisaillement BH | E6: Delta VM | F6: Torsion VM | G6: Somme | N6: un | P6: trois
A7: 1/C3= | B7: =C13^2*'NW nachgiebig verb. Biegeträger'!Q26/(12*Geometrie!C26*'NW nachgiebig verb. Biegeträger'!Q17*'NW nachgiebig verb. Biegeträger'!Q15^3/12) -> 0.0001884469697 | C7: =(1/24*C11^3+1/3*(C11/2-C12)^3)/(Geometrie!B26*'NW nachgiebig verb. Biegeträger'!Q24*'NW nachgiebig verb. Biegeträger'!Q23^3/12) -> 9.917577304e-05 | D7: =C13/(Geometrie!C29*5/6*'NW nachgiebig verb. Biegeträger'!Q24*'NW nachgiebig verb. Biegeträger'!Q23) -> 0.0001823281907 | E7: ='NW nachgiebig verb. Biegeträger'!Q24/(4*Geometrie!C30*'NW nachgiebig verb. Biegeträger'!Q23*'NW nachgiebig verb. Biegeträger'!Q15) -> 5.241935484e-05 | F7: =C13^2/(2*3/1.3*'NW nachgiebig verb. Biegeträger'!AC261) -> 0.001925766159 | G7: =SUM(B7:F7) -> 0.002448136447 | M7: Torsion de barre | N7: 2.126468769e-06 | O7: =N7/$N$12 -> 0.02137391451 | P7: 0.0002076629658 | Q7: =P7/$P$12 -> 0.1967448875
A8: C3= | B8: =1/G7 -> 408.4739644 | C8: N/mm | I8: cφ,3 = | J8: =D18^2/(B7+F7) -> 4729892.113 | K8: Nmm | M8: Flexion BH | N8: 3.434234911e-06 | O8: =N8/$N$12 -> 0.03451874979 | P8: 5.365992049e-05 | Q8: =P8/$P$12 -> 0.05083869905
M9: Cisaillement BH | N9: 5.942857143e-05 | O9: =N9/$N$12 -> 0.5973382837 | P9: 0.0001485714286 | Q9: =P9/$P$12 -> 0.1407601442
A10: Module d'élasticité de référence | C10: ='NW nachgiebig verb. Biegeträger'!Q19 -> 11000 | D10: N/mm² | M10: Delta VM | N10: 7.536231884e-06 | O10: =N10/$N$12 -> 0.07574942004 | P10: 1.884057971e-05 | Q10: =P10/$P$12 -> 0.01785001828
A11: Entraxe des membrures a (centre de gravité) | C11: =C12+C13 -> 200 | D11: mm | M11: Torsion VM | N11: 2.696346441e-05 | O11: =N11/$N$12 -> 0.2710196319 | P11: 0.0006267586861 | Q11: =P11/$P$12 -> 0.593806251
A12: Entraxe des centres de gravité a1 (sans g) | C12: ='NW nachgiebig verb. Biegeträger'!Q25-0.5*'NW nachgiebig verb. Biegeträger'!Q14-('NW nachgiebig verb. Biegeträger'!Q17*'NW nachgiebig verb. Biegeträger'!Q14*Gamma!H16*('NW nachgiebig verb. Biegeträger'!Q25-0.5*'NW nachgiebig verb. Biegeträger'!Q14)+'NW nachgiebig verb. Biegeträger'!Q17*'NW nachgiebig verb. Biegeträger'!Q15*Gamma!H18*0.5*'NW nachgiebig verb. Biegeträger'!Q15)/('NW nachgiebig verb. Biegeträger'!Q17*'NW nachgiebig verb. Biegeträger'!Q14*Gamma!H16+'NW nachgiebig verb. Biegeträger'!Q17*'NW nachgiebig verb. Biegeträger'!Q15*Gamma!H18) -> 100 | D12: mm | E12: Centre de gravité | F12: =('NW nachgiebig verb. Biegeträger'!Q14*('NW nachgiebig verb. Biegeträger'!Q25-'NW nachgiebig verb. Biegeträger'!Q14/2) + 'NW nachgiebig verb. Biegeträger'!Q15^2/2)/('NW nachgiebig verb. Biegeträger'!Q14+'NW nachgiebig verb. Biegeträger'!Q15) -> 120 | G12: mm | N12: =SUM(N7:N11) -> 9.94889714e-05 | P12: =SUM(P7:P11) -> 0.001055493581
A13: Entraxe des centres de gravité a3 (sans g) | C13: =('NW nachgiebig verb. Biegeträger'!Q17*'NW nachgiebig verb. Biegeträger'!Q14*Gamma!H16*('NW nachgiebig verb. Biegeträger'!Q25-0.5*'NW nachgiebig verb. Biegeträger'!Q14)+'NW nachgiebig verb. Biegeträger'!Q17*'NW nachgiebig verb. Biegeträger'!Q15*Gamma!H18*0.5*'NW nachgiebig verb. Biegeträger'!Q15)/('NW nachgiebig verb. Biegeträger'!Q17*'NW nachgiebig verb. Biegeträger'!Q14*Gamma!H16+'NW nachgiebig verb. Biegeträger'!Q17*'NW nachgiebig verb. Biegeträger'!Q15*Gamma!H18)-0.5*'NW nachgiebig verb. Biegeträger'!Q15 -> 100 | D13: mm
A15: Partie | B15: b | C15: h | D15: a | E15: A | F15: n * g * A * a^2 | G15: n * I | H15: n | I15: Données de base et données de suivi
A16: 1 | B16: ='NW nachgiebig verb. Biegeträger'!Q17 -> 39 | C16: ='NW nachgiebig verb. Biegeträger'!Q14 -> 40 | D16: =C12 -> 100 | E16: =B16*C16 -> 1560 | F16: =H16*'NW nachgiebig verb. Biegeträger'!W111*Gamma!E16*Gamma!D16^2 -> 994529.8745 | G16: =1/12*H16*B16*C16^3 -> 208000 | H16: ='NW nachgiebig verb. Biegeträger'!Q19/Gamma!C10 -> 1 | I16: Système
A17: 2 | B17: ='NW nachgiebig verb. Biegeträger'!Q24 -> 20 | D17: =0.5*('NW nachgiebig verb. Biegeträger'!W111*Gamma!H16*Gamma!B16*Gamma!C16*(Gamma!C16+('NW nachgiebig verb. Biegeträger'!Q25-'NW nachgiebig verb. Biegeträger'!Q14-'NW nachgiebig verb. Biegeträger'!Q15))-'NW nachgiebig verb. Biegeträger'!AF111*Gamma!H18*Gamma!B18*Gamma!C18*(Gamma!C18+('NW nachgiebig verb. Biegeträger'!Q25-'NW nachgiebig verb. Biegeträger'!Q14-'NW nachgiebig verb. Biegeträger'!Q15)))/('NW nachgiebig verb. Biegeträger'!W111*Gamma!H16*Gamma!B16*Gamma!C16+Gamma!H17*Gamma!B17*('NW nachgiebig verb. Biegeträger'!Q25-'NW nachgiebig verb. Biegeträger'!Q14-'NW nachgiebig verb. Biegeträger'!Q15)+'NW nachgiebig verb. Biegeträger'!AF111*Gamma!H18*Gamma!B18*Gamma!C18) -> 0 | E17: =B17*C17 -> 0 | H17: ='NW nachgiebig verb. Biegeträger'!Q28/Gamma!C10 -> 1 | I17: e | J17: ='NW nachgiebig verb. Biegeträger'!Q26 -> 398
A18: 3 | B18: ='NW nachgiebig verb. Biegeträger'!Q17 -> 39 | C18: ='NW nachgiebig verb. Biegeträger'!Q15 -> 40 | D18: =C13 -> 100 | E18: =B18*C18 -> 1560 | F18: =H18*'NW nachgiebig verb. Biegeträger'!AF111*Gamma!E18*Gamma!D18^2 -> 994529.8745 | G18: =1/12*H18*B18*C18^3 -> 208000 | H18: ='NW nachgiebig verb. Biegeträger'!Q20/Gamma!C10 -> 1 | I18: l | J18: ='NW nachgiebig verb. Biegeträger'!Q31 -> 2940
E19: =SUM(E16:E18) -> 3120 | F19: =SUM(F16:F18) -> 1989059.749 | G19: =SUM(G16:G18) -> 416000 | I19: b | J19: 1
A20: eff I | B20: =F19+G19 -> 2405059.749 | C20: mm4 | I20: ly

Sheet Klammerverbindung (hidden)
A1: Calcul des agrafes U*psi S
A3: Nombre d’agrafes par traverse | B3: =Eingabe!U106 -> 2
A4: Système :
B5: Épaisseur de bois bG /2 | C5: = | D5: ='NW ohne nachgiebigen Verbund'!Q17/2 -> 19.5
B6: Épaisseur de bois s | C6: = | D6: ='NW ohne nachgiebigen Verbund'!Q24 -> 20
A8: Matériau :
B9: Matériau de construction | C9: = | D9: Bois massif
B10: CS | C10: = | D10: =Eingabe!Q69 -> 1
B11: KD | C11: = | D11: =Eingabe!Q70 -> courte
B12: kmod | C12: = | D12: =Eingabe!Q72 -> 0.9
B13: Classe de tri de membrure de façade | C13: = | D13: C24
B14: rk1 | C14: = | D14: 350
B15: Classe de tri de bois coupé en croix | C15: = | D15: C24
B16: rk2 | C16: = | D16: 350
B17: gM | C17: = | D17: 1.3
B18: gS | C18: = | D18: 1.1
B19: b | C19: = | D19: 1
B21: Longueur de clou | C21: L | D21: =Eingabe!U108 -> 55
B22: Diamètre de clou | C22: d | D22: =Eingabe!U109 -> 1.8
B23: Entraxe des clous | C23: c | D23: =Eingabe!U110 -> 11
A25: Calcul :
B26: non amorcé :
B27: fh,1,k | D27: =0.082*D14*(D22)^(-0.3) -> 24.06025053
B28: fh,2,k | D28: =0.082*D16*(D22)^-(0.3) -> 24.06025053
B30: fh,1,d | D30: =D12/D17*D27 -> 16.65709652
B31: fh,2,d | D31: =D12/D17*D28 -> 16.65709652
B33: Moment plastique caractéristique pour clous ronds :
B34: My,k | D34: =0.3*800*D22^2.6/D18 -> 1005.835755
B35: My,d | D35: =D18*D34 -> 1106.419331
A37: Cas de défaillance :
B38: 1 | C38: RK1 | D38: =D27*D5*D22 -> 844.5147937
B39: 2 | C39: RK2 | D39: =0.5*D28*D6*D22 -> 433.0845096
B40: 3 | C40: RK3 | D40: =1.05*((D27*D5*D22)/(2+D19))*(SQRT(2*D19*(1+D19)+(4*D19*(2+D19)*D34)/(D30*D22*D5^2)-D19)) -> 595.4811903
B41: 4 | C41: RK4 | D41: =1.15*SQRT((2*D19)/(1+D19))*SQRT(2*D34*D27*D22) -> 339.4397495
B43: Fv,Rk | C43: min. | D43: =2*MIN(D38:D41) -> 678.879499
B44: Fv,Rd | D44: =D43*D12/D17 -> 469.9934993
A45: Réduction :
B47: c ≥ 6*d
B48: =D23 -> 11 | C48: =6*D22 -> 10.8 | D48: =B48/C48 -> 1.018518519 | E48: =IF(D48>1,"> 1","< 1") -> > 1 | F48: =IF(D48>1,"Aucune réduction requise",IF((D48)<1,"Réduction requise",)) -> Aucune réduction requise | G48: =IF(F48="Réduction requise",0.7,1) -> 1
B49: s ≥ 14*d
B50: =D6 -> 20 | C50: =14*D22 -> 25.2 | D50: =B50/C50 -> 0.7936507937 | E50: =IF(D50>1,"> 1","< 1") -> < 1 | F50: =IF(D50>1,"Aucune réduction requise",IF((D50)<1,"Réduction requise",)) -> Réduction requise | G50: =IF(F50="Réduction requise",0.7,1) -> 0.7
B51: t ≥ 7*d
B52: =D21-D5-D6 -> 15.5 | C52: =7*D22 -> 12.6 | D52: =B52/C52 -> 1.23015873 | E52: =IF(D52>1,"> 1","< 1") -> > 1 | F52: =IF(D52>1,"Aucune réduction requise",IF((D52)<1,"Réduction requise",)) -> Aucune réduction requise | G52: =IF(F52="Réduction requise",0.7,1) -> 1
A55: Capacité de charge de la liaison par agrafe | C55: Fliaison par agrafe | D55: =D44*B3*G56 -> 657.990899
A56: Capacité de charge de la membrure de façade | D56: =D55*8 -> 5263.927192 | G56: =MIN(G50,G52) -> 0.7
A59: Force verticale par traverse | C59: FV,d,traverse | D59: =Eingabe!AD86*1000/8 -> 1069.769531
A60: Force horizontale par traverse (vent) | C60: FH,d,traverse | D60: =IF(Eingabe!P90="Suisse",Eingabe!Q103,Eingabe!AC103)*2.94*1000/8 -> 234.28125
A61: Moment par traverse | C61: FM,d,traverse | D61: =Eingabe!Q72/Eingabe!Q73*'NW ohne nachgiebigen Verbund'!AC268/Eingabe!U110 -> 8464.110577
A65: Entraxes minimum des agrafes pour angle entre dos d’agrafe et sens des fibres > 30°
A67: Angle entre la direction de l'effort et le sens des fibres | D67: a | E67: =Eingabe!U112 -> 0°- 90°
A68: Angle entre dos d’agrafe et sens des fibres | D68: b | E68: =Eingabe!U113 -> >30°
B70: a1 | C70: parallèle au sens des fibres | E70: =5*$D$22 -> 9
B71: a2 | C71: perpendiculaire au sens des fibres | E71: =5*$D$22 -> 9
B72: a1,t | C72: Extrémité sollicitée du bois de bout | E72: =15*D22 -> 27
B73: a1,c | C73: Extrémité non sollicitée du bois de bout | E73: =7*$D$22 -> 12.6
B74: a2,t | C74: Bord sollicité | E74: =5*$D$22 -> 9
B75: a2,c | C75: Bord non sollicité | E75: =5*$D$22 -> 9

Sheet Grenzwerte (hidden)
K1: CHARGE PAR m²
K2: Charge horizontale qR,k,⊥ [kN/m²] | L2: Charge verticale qR,k,II [kN/m²]
L3: F_g_160 | M3: F_g_200 | N3: F_g_240 | O3: F_g_300
K4: 0 | L4: 3.3 | M4: 2.75 | N4: 2.35 | O4: 1.9
K5: 0.5 | L5: 3.3 | M5: 2.75 | N5: 2.3 | O5: 1.9
K6: 1 | L6: 3.25 | M6: 2.7 | N6: 2.3 | O6: 1.85
K7: 1.5 | L7: 3.2 | M7: 2.65 | N7: 2.25 | O7: 1.85
K8: 2 | L8: 3.15 | M8: 2.6 | N8: 2.2 | O8: 1.75
K9: 2.5 | L9: 3.05 | M9: 2.5 | N9: 2.15 | O9: 1.7
K10: 3 | L10: 3 | M10: 2.45 | N10: 2.05 | O10: 1.65
K11: 3.5 | L11: 2.9 | M11: 2.35 | N11: 1.95 | O11: 1.55
K12: 4 | L12: 2.75 | M12: 2.25 | N12: 1.85 | O12: 1.5
K13: 4.5 | L13: 2.45 | M13: 2.15 | N13: 1.75 | O13: 1.4
K14: 5 | L14: 2.2 | M14: 2 | N14: 1.65 | O14: 1.3
K15: 5.5 | L15: 1.95 | M15: 1.9 | N15: 1.6 | O15: 1.25
K16: 6 | L16: 1.7 | M16: 1.65 | N16: 1.45 | O16: 1.15
K17: 6.5 | L17: 1.45 | M17: 1.45 | N17: 1.35 | O17: 1.1
K18: 7 | L18: 1.15 | M18: 1.15 | N18: 1.15 | O18: 1
K19: 7.5 | L19: 0.9 | M19: 0.9 | N19: 0.9 | O19: 0.9
K20: 8 | L20: 0.65 | M20: 0.65 | N20: 0.65 | O20: 0.65
K21: 8.5 | L21: 0.35 | M21: 0.35 | N21: 0.35 | O21: 0.35
K22: 9 | L22: 0.1 | M22: 0.1 | N22: 0.1 | O22: 0.1
K23: 9.5 | L23: 0 | M23: 0 | N23: 0 | O23: 0
K24: 10 | L24: 0 | M24: 0 | N24: 0 | O24: 0
K28: CHARGE PAR mc
K29: Charge horizontale qR,k,⊥ [kN/mc] | L29: Charge verticale qR,k,II [kN/mc]
L30: F_g_160 | M30: F_g_200 | N30: F_g_240 | O30: F_g_300
K31: 0 | L31: =L4/0.625 -> 5.28 | M31: 4.4 | N31: 3.76 | O31: 3.04
K32: 0.5 | L32: 5.28 | M32: 4.4 | N32: 3.68 | O32: 3.04
K33: 1 | L33: 5.2 | M33: 4.32 | N33: 3.68 | O33: 2.96
K34: 1.5 | L34: 5.12 | M34: 4.24 | N34: 3.6 | O34: 2.96
K35: 2 | L35: 5.04 | M35: 4.16 | N35: 3.52 | O35: 2.8
K36: 2.5 | L36: 4.88 | M36: 4 | N36: 3.44 | O36: 2.72
K37: 3 | L37: 4.8 | M37: 3.92 | N37: 3.28 | O37: 2.64
K38: 3.5 | L38: 4.64 | M38: 3.76 | N38: 3.12 | O38: 2.48
K39: 4 | L39: 4.4 | M39: 3.6 | N39: 2.96 | O39: 2.4
K40: 4.5 | L40: 3.92 | M40: 3.44 | N40: 2.8 | O40: 2.24
K41: 5 | L41: 3.52 | M41: 3.2 | N41: 2.64 | O41: 2.08
K42: 5.5 | L42: 3.12 | M42: 3.04 | N42: 2.56 | O42: 2
K43: 6 | L43: 2.72 | M43: 2.64 | N43: 2.32 | O43: 1.84
K44: 6.5 | L44: 2.32 | M44: 2.32 | N44: 2.16 | O44: 1.76
K45: 7 | L45: 1.84 | M45: 1.84 | N45: 1.84 | O45: 1.6
K46: 7.5 | L46: 1.44 | M46: 1.44 | N46: 1.44 | O46: 1.44
K47: 8 | L47: 1.04 | M47: 1.04 | N47: 1.04 | O47: 1.04
K48: 8.5 | L48: 0.56 | M48: 0.56 | N48: 0.56 | O48: 0.56
K49: 9 | L49: 0.16 | M49: 0.16 | N49: 0.16 | O49: 0.16
K50: 9.5 | L50: 0 | M50: 0 | N50: 0 | O50: 0
K51: 10 | L51: 0 | M51: 0 | N51: 0 | O51: 0
